fUSD/lending_fUSD_20260111
["ID","MTS","AMOUNT","RATE_DAILY","PERIOD"]
[401287761,1768108232541,-271.98,0.00014808,2]
[401287762,1768108232551,-271.98,0.00015234,2]
[401287763,1768108232561,-717.02,0.00015382,2]
[401287764,1768108232570,-267.04,0.0001566,2]
[401287765,1768108233074,-4.94,0.0001566,2]
[401287766,1768108233086,-300.0,0.00015888,2]
[401287767,1768108233095,-1200.0,0.00015888,2]
[401287768,1768108233105,-10667.87,0.00015889,2]
[401287769,1768108233115,-1500.0,0.00015898,2]
[401287770,1768108233124,-957.92,0.00015918,2]
[401287771,1768108233133,-4272.42,0.00015954,2]
[401287772,1768108233143,-999.0,0.00016015,3]
[401287773,1768108233152,-271.98,0.00016085,2]
[401287774,1768108233161,-151.0,0.00016279,2]
[401287775,1768108233171,-151.0,0.00016279,2]
[401287776,1768108233180,-226.62,0.00016438,2]
[401287777,1768108233190,-803.4081895,0.00016438,2]
[401287778,1768108233200,-271.98,0.00016511,2]
[401287779,1768108233209,-957.92,0.00016515,2]
[401287780,1768108233219,-813.18,0.00016664,2]
[401287781,1768108233228,-200.0,0.00016779,2]
[401287782,1768108233237,-150.0,0.00016779,2]
[401287783,1768108233247,-500.0,0.00016786,2]
[401287784,1768108233256,-500.0,0.00016786,2]
[401287785,1768108233265,-317.57830812,0.00016786,2]
[401287786,1768108233274,-507.72704529,0.00016786,2]
[401287787,1768108233284,-534.54638343,0.00016786,2]
[401287788,1768108233293,-500.0,0.00016786,2]
[401287789,1768108233303,-500.0,0.00016786,2]
[401287790,1768108233312,-500.0,0.00016786,2]
[401287791,1768108233322,-500.0,0.00016786,2]
[401287792,1768108233332,-299.80526481,0.00016786,2]
[401287793,1768108233342,-105225.61177107,0.00016787,2]
[401287795,1768108238108,-500.0,0.00016786,2]
[401287796,1768108238118,-500.0,0.00016786,2]
[401287797,1768108238128,-500.0,0.00016786,2]
[401287798,1768108238137,-500.0,0.00016786,2]
[401287799,1768108238147,-615.92482793,0.00016786,2]
[401287800,1768108238158,-500.0,0.00016786,2]
[401287801,1768108238168,-500.0,0.00016786,2]
[401287802,1768108238178,-500.0,0.00016786,2]
[401287803,1768108238187,-358.45420796,0.00016786,2]
[401287804,1768108238196,-500.0,0.00016786,2]
[401287805,1768108238206,-500.0,0.00016786,2]
[401287806,1768108238216,-500.0,0.00016786,2]
[401287807,1768108238227,-500.0,0.00016786,2]
[401287808,1768108238237,-500.0,0.00016786,2]
[401287809,1768108238247,-500.0,0.00016786,2]
[401287810,1768108238257,-311.43162287,0.00016786,2]
[401287811,1768108238270,-188.56837713,0.00016786,2]
[401287812,1768108238279,-500.0,0.00016786,2]
[401287813,1768108238289,-24156.47875066,0.00016787,2]
[401287814,1768108238309,-451.14186505,0.00016787,2]
[401287815,1768108238321,-4617.51286413,0.00016787,2]
[401287816,1768108238353,-762.1116828,0.00016787,2]
[401287885,1768108240357,-864787.14306629,0.00016787,2]
[401287886,1768108240366,-9703.69,0.00016887,2]
[401287887,1768108240376,-4467.2006629,0.00016912,2]
[401287888,1768108240386,-550.0,0.00016921,2]
[401287889,1768108240396,-999.99,0.00016922,2]
[401287890,1768108240405,-299.99,0.00016922,4]
[401287891,1768108240415,-9999.99,0.00016922,2]
[401287892,1768108240424,-150.99,0.00016922,2]
[401287893,1768108240433,-3163.22,0.00016922,2]
[401287894,1768108240442,-2970.53,0.00016922,2]
[401287895,1768108240451,-513.24,0.00016922,2]
[401287896,1768108240460,-9999.99,0.00016922,2]
[401287897,1768108240470,-8889.81,0.00016922,2]
[401287898,1768108240479,-200.0,0.00016932,2]
[401287899,1768108240489,-205.83418828,0.00016932,2]
[401287900,1768108240499,-151.0,0.00016932,2]
[401287901,1768108240511,-151.0,0.00016932,2]
[401287902,1768108240521,-151.0,0.00016932,2]
[401287903,1768108240531,-151.0,0.00016932,2]
[401287904,1768108240540,-151.0,0.00016932,2]
[401287905,1768108240550,-151.0,0.00016932,2]
[401287906,1768108240560,-151.0,0.00016932,2]
[401287907,1768108240569,-151.0,0.00016932,2]
[401287908,1768108240578,-151.0,0.00016932,2]
[401287909,1768108240588,-151.0,0.00016932,2]
[401287910,1768108240597,-151.0,0.00016932,2]
[401287911,1768108240607,-500.0,0.00016941,2]
[401287912,1768108240617,-918.33,0.00016941,2]
[401287913,1768108240626,-4653.52472313,0.00016941,2]
[401287914,1768108240635,-33584.3474,0.00016942,2]
[401287915,1768108240645,-2500.0,0.00016942,2]
[401287916,1768108240654,-4781.85268166,0.00016968,2]
[401287917,1768108240664,-401.3323144,0.00016968,2]
[401287918,1768108240673,-235.0,0.00017004,2]
[401287919,1768108240682,-477.09866018,0.00017008,2]
[401287921,1768108240692,-150.0,0.00017041,2]
[401287923,1768108240701,-150.0,0.00017041,2]
[401287924,1768108240711,-150.0,0.00017041,2]
[401287925,1768108240722,-232.30725716,0.00017041,2]
[401287926,1768108240732,-500.0,0.00017041,2]
[401287927,1768108240742,-500.0,0.00017041,2]
[401287928,1768108240751,-387.93960788,0.00017041,2]
[401287929,1768108240760,-506.04284897,0.00017041,2]
[401287930,1768108240770,-500.0,0.00017041,2]
[401287931,1768108240779,-500.0,0.00017041,2]
[401287932,1768108240789,-500.0,0.00017041,2]
[401287933,1768108240799,-500.0,0.00017041,2]
[401287934,1768108240808,-500.0,0.00017041,2]
[401287935,1768108240818,-500.0,0.00017041,2]
[401287936,1768108240828,-500.0,0.00017041,2]
[401287937,1768108240837,-500.0,0.00017041,2]
[401287938,1768108240847,-175.70111921,0.00017041,2]
[401287940,1768108240856,-504.98697303,0.00017041,2]
[401287941,1768108240866,-511.69495578,0.00017041,2]
[401287942,1768108240875,-500.0,0.00017041,2]
[401287943,1768108240884,-500.0,0.00017041,2]
[401287944,1768108240894,-500.0,0.00017041,2]
[401287945,1768108240903,-551.63629668,0.00017041,2]
[401287946,1768108240913,-503.17388714,0.00017041,2]
[401287947,1768108240922,-500.0,0.00017041,2]
[401287948,1768108240932,-500.0,0.00017041,2]
[401287949,1768108240941,-500.0,0.00017041,2]
[401287950,1768108240950,-351.96587182,0.00017041,2]
[401287951,1768108240960,-500.0,0.00017041,2]
[401287952,1768108240970,-500.0,0.00017041,2]
[401287953,1768108240980,-500.0,0.00017041,2]
[401287954,1768108240989,-500.0,0.00017041,2]
[401287955,1768108240998,-511.94601024,0.00017041,2]
[401287956,1768108241008,-500.0,0.00017068,2]
[401287957,1768108241017,-500.0,0.00017073,2]
[401287958,1768108241026,-504.58722527,0.00017073,2]
[401287959,1768108241036,-500.0,0.00017073,2]
[401287960,1768108241046,-500.0,0.00017073,2]
[401287961,1768108241056,-411.48679408,0.00017073,2]
[401287962,1768108241066,-502.14927888,0.00017073,2]
[401287963,1768108241075,-500.0,0.00017073,2]
[401287964,1768108241084,-500.0,0.00017073,2]
[401287965,1768108241094,-500.0,0.00017073,2]
[401287966,1768108241104,-1000.0,0.00017108,2]
[401287967,1768108241114,-957.92,0.00017112,2]
[401287968,1768108241123,-275.0,0.00017187,2]
[401287969,1768108241133,-500.0,0.000172,2]
[401287970,1768108241143,-500.0,0.000172,2]
[401287971,1768108241152,-506.80096017,0.00017207,2]
[401287972,1768108241162,-513.74868065,0.00017207,2]
[401287973,1768108241171,-500.0,0.00017207,2]
[401287974,1768108241180,-500.0,0.00017207,2]
[401287975,1768108241189,-500.0,0.00017207,2]
[401287976,1768108241199,-369.80894122,0.00017207,2]
[401287977,1768108241208,-500.0,0.00017207,2]
[401287978,1768108241456,-500.0,0.00017207,2]
[401287979,1768108241482,-500.0,0.00017207,2]
[401287980,1768108241491,-500.0,0.00017207,2]
[401287981,1768108241501,-500.0,0.00017207,2]
[401287982,1768108241518,-500.0,0.00017207,2]
[401287983,1768108241528,-504.23210623,0.00017207,2]
[401287984,1768108241537,-500.0,0.00017215,2]
[401287985,1768108241547,-918.33,0.00017215,2]
[401287986,1768108241557,-1170.8,0.00017297,2]
[401287987,1768108241567,-420.0,0.00017373,2]
[401287988,1768108241577,-1000.0,0.000174,2]
[401287989,1768108241586,-1680.0,0.0001746,2]
[401287990,1768108241596,-500.0,0.00017489,2]
[401287991,1768108241606,-918.33,0.00017489,2]
[401287992,1768108241615,-813.18,0.00017497,2]
[401287993,1768108241626,-166.66,0.00017572,2]
[401287994,1768108241635,-500.0,0.00017573,2]
[401287995,1768108241645,-500.0,0.00017573,2]
[401287996,1768108241655,-500.0,0.00017573,2]
[401287997,1768108241664,-500.0,0.00017573,2]
[401287998,1768108241674,-501.53286712,0.00017573,2]
[401287999,1768108241683,-500.0,0.00017573,2]
[401288000,1768108241692,-500.0,0.00017573,2]
[401288001,1768108241702,-534.08,0.0001759,2]
[401288002,1768108241711,-504.05178129,0.00017621,2]
[401288003,1768108241722,-1000.0,0.00017621,2]
[401288004,1768108241732,-1003.57869297,0.00017621,2]
[401288005,1768108241741,-599.35467002,0.00017621,2]
[401288006,1768108241750,-1000.0,0.00017621,2]
[401288007,1768108241760,-957.92,0.00017709,2]
[401288008,1768108241770,-598.6061789,0.00017763,2]
[401288009,1768108241780,-918.33,0.00017763,2]
[401288010,1768108241789,-2000.0,0.000178,2]
[401288011,1768108241801,-549.33078738,0.00017811,2]
[401288012,1768108241810,-4653.52472305,0.00017821,2]
[401288013,1768108241819,-4781.85268159,0.00017845,2]
[401288014,1768108241829,-519.22017431,0.00017899,2]
[401288015,1768108241838,-3057.93101458,0.000179,2]
[401288016,1768108241847,-187.62,0.00017912,2]
[401288017,1768108241857,-500.57555444,0.00017973,2]
[401288018,1768108241867,-502.97723927,0.00017973,2]
[401288019,1768108241876,-502.16076681,0.00017973,2]
[401288020,1768108241886,-502.20384075,0.00017973,2]
[401288021,1768108241897,-500.0,0.00017973,2]
[401288022,1768108241906,-501.86870359,0.00017973,2]
[401288023,1768108241916,-162.88589619,0.00017973,2]
[401288024,1768108241926,-501.18010487,0.00017973,2]
[401288025,1768108241936,-500.58490449,0.00017973,2]
[401288026,1768108241945,-502.11992666,0.00017973,2]
[401288027,1768108241955,-162.77465543,0.00017973,2]
[401288028,1768108241965,-502.19767988,0.00017973,2]
[401288029,1768108241974,-503.90014341,0.00017973,2]
[401288030,1768108241983,-557.70123115,0.00017973,2]
[401288031,1768108241993,-501.96956013,0.00017973,2]
[401288032,1768108242003,-501.10103847,0.00017973,2]
[401288033,1768108242013,-501.726078,0.00017973,2]
[401288034,1768108242022,-501.17975995,0.00017973,2]
[401288035,1768108242031,-501.34734474,0.00017973,2]
[401288036,1768108242041,-504.18004665,0.00017973,2]
[401288037,1768108242050,-500.0,0.00017973,2]
[401288038,1768108242059,-503.27884671,0.00017973,2]
[401288039,1768108242067,-500.0,0.00017973,2]
[401288040,1768108242075,-500.57949361,0.00017973,2]
[401288041,1768108242084,-502.57553065,0.00017973,2]
[401288042,1768108242093,-500.73779976,0.00017973,2]
[401288043,1768108242102,-179.59546865,0.00017973,2]
[401288044,1768108242111,-500.0,0.00017973,2]
[401288045,1768108242120,-500.0,0.00017973,2]
[401288046,1768108242130,-572.06586713,0.00017973,2]
[401288047,1768108242139,-501.54638306,0.00017973,2]
[401288048,1768108242149,-500.9418136,0.00017973,2]
[401288049,1768108242159,-520.46902884,0.00017973,2]
[401288050,1768108242168,-500.87414528,0.00017973,2]
[401288051,1768108242178,-501.97668719,0.00017973,2]
[401288052,1768108242187,-502.8332664,0.00017973,2]
[401288053,1768108242197,-501.44427831,0.00017973,2]
[401288054,1768108242206,-511.14315955,0.00017973,2]
[401288055,1768108242215,-500.60183963,0.00017973,2]
[401288056,1768108242224,-157.01937644,0.00017973,2]
[401288057,1768108242233,-503.56442697,0.00017973,2]
[401288058,1768108242243,-500.0,0.00017973,2]
[401288059,1768108242255,-503.82733899,0.00017973,2]
[401288060,1768108242266,-335.65834936,0.00017973,2]
[401288061,1768108242276,-510.73690945,0.00017973,2]
[401288062,1768108242285,-500.35683614,0.00017973,2]
[401288063,1768108242294,-500.0,0.00017973,2]
[401288064,1768108242304,-500.0,0.00017973,2]
[401288065,1768108242313,-169.15829235,0.00017973,2]
[401288066,1768108242325,-502.74289517,0.00017973,2]
[401288067,1768108242336,-507.81096142,0.00017973,2]
[401288068,1768108242345,-501.87832261,0.00017973,2]
[401288069,1768108242356,-500.21883236,0.00017973,2]
[401288070,1768108242366,-500.29351084,0.00017973,2]
[401288071,1768108242375,-162.14736698,0.00017973,2]
[401288072,1768108242384,-500.0,0.00017973,2]
[401288073,1768108242393,-501.18756718,0.00017973,2]
[401288074,1768108242403,-502.121963,0.00017973,2]
[401288075,1768108242413,-372.8013021,0.00017973,2]
[401288076,1768108242422,-501.71836559,0.00017973,2]
[401288077,1768108242432,-167.44541056,0.00017973,2]
[401288078,1768108242442,-502.51821481,0.00017973,2]
[401288079,1768108242451,-160.6452853,0.00017973,2]
[401288080,1768108242462,-500.52849682,0.00017973,2]
[401288081,1768108242472,-501.12751092,0.00017973,2]
[401288082,1768108242483,-160.71302509,0.00017973,2]
[401288083,1768108242493,-524.65009993,0.00017973,2]
[401288084,1768108242504,-164.23685593,0.00017973,2]
[401288085,1768108242515,-308.28202537,0.00017973,2]
[401288086,1768108242527,-375.55363801,0.00017973,2]
[401288087,1768108242536,-484.59407405,0.00017973,2]
[401288088,1768108242546,-500.59152036,0.00017973,2]
[401288089,1768108242556,-501.13265321,0.00017973,2]
[401288090,1768108242565,-166.10445482,0.00017973,2]
[401288091,1768108242574,-283.51755406,0.00017973,2]
[401288092,1768108242583,-501.83250787,0.00017973,2]
[401288093,1768108242593,-501.54323957,0.00017973,2]
[401288094,1768108242602,-500.99261828,0.00017973,2]
[401288095,1768108242612,-470.02589304,0.00017973,2]
[401288096,1768108242622,-500.81412123,0.00017973,2]
[401288097,1768108242632,-502.53832636,0.00017973,2]
[401288098,1768108242641,-161.58923425,0.00017973,2]
[401288099,1768108242650,-501.04330923,0.00017973,2]
[401288100,1768108242659,-546.67038325,0.00017976,2]
[401288101,1768108242669,-500.0,0.00017976,2]
[401288102,1768108242678,-500.0,0.00017976,2]
[401288103,1768108242688,-500.0,0.00017976,2]
[401288104,1768108242697,-500.0,0.00017976,2]
[401288105,1768108242707,-500.0,0.00017976,2]
[401288106,1768108242718,-508.33302413,0.00017976,2]
[401288107,1768108242729,-500.0,0.00017976,2]
[401288108,1768108242738,-7923.02877172,0.00017977,2]
[401288109,1768108242748,-980.46577781,0.00017977,2]
[401288110,1768108242757,-1247.59056919,0.00017977,2]
[401288111,1768108242767,-3413.39431629,0.00017977,2]
[401288112,1768108242776,-219.86058503,0.00017982,2]
[401288113,1768108242785,-157.571,0.00017998,2]
[401288114,1768108242795,-510.51181022,0.00017998,2]
[401288115,1768108242804,-500.0,0.00017998,2]
[401288116,1768108242813,-500.0,0.00017998,2]
[401288117,1768108242823,-150.0,0.00017998,2]
[401288118,1768108242832,-695633.1273234,0.00017999,2]
[401288120,1768108242841,-500.0,0.00017999,2]
[401288122,1768108242850,-500.0,0.00017999,2]
[401288123,1768108242859,-500.0,0.00017999,2]
[401288124,1768108242869,-500.0,0.00017999,2]
[401288125,1768108242878,-500.0,0.00017999,2]
[401288126,1768108242888,-500.0,0.00017999,2]
[401288127,1768108242897,-500.0,0.00017999,2]
[401288128,1768108242906,-500.0,0.00017999,2]
[401288129,1768108242916,-602.31786917,0.00017999,2]
[401288130,1768108242924,-1137.8294112,0.00017999,2]
[401288132,1768108242934,-500.0,0.00017999,2]
[401288134,1768108242943,-500.0,0.00017999,2]
[401288135,1768108242953,-500.0,0.00017999,2]
[401288136,1768108242963,-500.0,0.00017999,2]
[401288137,1768108242972,-511.98797605,0.00017999,2]
[401288138,1768108242981,-2793.2009925,0.00017999,2]
[401288139,1768108242991,-2556.9096565,0.00017999,2]
[401288140,1768108243000,-500.0,0.00017999,2]
[401288141,1768108243010,-500.0,0.00017999,2]
[401288142,1768108243019,-500.0,0.00017999,2]
[401288143,1768108243030,-74438.7286675,0.00017999,2]
[401288144,1768108243042,-365816.7400806,0.00018,2]
[401288145,1768108243052,-111712.36858063,0.00018,2]
[401288146,1768108243063,-31893.7604825,0.00018,2]
[401288147,1768108243072,-1600.56069676,0.00018,2]
[401288148,1768108243082,-1188.59477544,0.00018,2]
[401288149,1768108243091,-151.0,0.00018,2]
[401288150,1768108243101,-267.609492,0.00018,2]
[401288151,1768108243111,-151.0,0.00018,2]
[401288152,1768108243120,-151.0,0.00018,2]
[401288153,1768108243128,-152.053507,0.00018,2]
[401288154,1768108243138,-151.0,0.00018,2]
[401288155,1768108243148,-151.0,0.00018,2]
[401288156,1768108243159,-151.0,0.00018,2]
[401288157,1768108243168,-151.0,0.00018,2]
[401288158,1768108243178,-261.137648,0.00018,2]
[401288159,1768108243188,-151.0,0.00018,2]
[401288160,1768108243198,-182.383587,0.00018,2]
[401288161,1768108243210,-151.132306,0.00018,2]
[401288162,1768108243221,-151.0,0.00018,2]
[401288163,1768108243232,-151.0,0.00018,2]
[401288164,1768108243243,-151.0,0.00018,2]
[401288165,1768108243254,-151.0,0.00018,2]
[401288166,1768108243265,-151.0,0.00018,2]
[401288167,1768108243274,-151.0,0.00018,2]
[401288168,1768108243283,-291.761293,0.00018,2]
[401288169,1768108243293,-151.0,0.00018,2]
[401288170,1768108243302,-151.0,0.00018,2]
[401288171,1768108243311,-294.418432,0.00018,2]
[401288172,1768108243320,-151.0,0.00018,2]
[401288173,1768108243330,-151.0,0.00018,2]
[401288174,1768108243339,-151.0,0.00018,2]
[401288175,1768108243348,-151.0,0.00018,2]
[401288176,1768108243357,-151.0,0.00018,2]
[401288177,1768108243367,-200.0,0.00018,2]
[401288178,1768108243376,-151.0,0.00018,2]
[401288179,1768108243385,-151.0,0.00018,2]
[401288180,1768108243395,-151.0,0.00018,2]
[401288181,1768108243404,-151.0,0.00018,2]
[401288182,1768108243413,-151.0,0.00018,2]
[401288183,1768108243422,-151.0,0.00018,2]
[401288184,1768108243432,-211.203179,0.00018,2]
[401288185,1768108243441,-151.0,0.00018,2]
[401288186,1768108243451,-151.0,0.00018,2]
[401288187,1768108243459,-173.651067,0.00018,2]
[401288188,1768108243468,-157.221985,0.00018,2]
[401288189,1768108243478,-151.0,0.00018,2]
[401288190,1768108243487,-151.70664153,0.00018,2]
[401288191,1768108243496,-151.0,0.00018,2]
[401288192,1768108243506,-160.253841,0.00018,2]
[401288193,1768108243516,-151.0,0.00018,2]
[401288194,1768108243525,-160.253841,0.00018,2]
[401288195,1768108243534,-160.253841,0.00018,2]
[401288196,1768108243543,-151.0,0.00018,2]
[401288197,1768108243552,-151.0,0.00018,2]
[401288198,1768108243561,-160.253841,0.00018,2]
[401288199,1768108243571,-151.0,0.00018,2]
[401288200,1768108243580,-151.0,0.00018,2]
[401288201,1768108243589,-151.0,0.00018,2]
[401288202,1768108243599,-151.0,0.00018,2]
[401288203,1768108243609,-206.637307,0.00018,2]
[401288204,1768108243619,-206.637307,0.00018,2]
[401288205,1768108243628,-206.637307,0.00018,2]
[401288206,1768108243638,-206.637307,0.00018,2]
[401288207,1768108243648,-159.095179,0.00018,2]
[401288208,1768108243658,-151.0,0.00018,2]
[401288209,1768108243668,-197.126237,0.00018,2]
[401288210,1768108243677,-153.440724,0.00018,2]
[401288211,1768108243687,-153.191082,0.00018,2]
[401288212,1768108243696,-153.191082,0.00018,2]
[401288213,1768108243705,-153.191082,0.00018,2]
[401288214,1768108243715,-175.110994,0.00018,2]
[401288215,1768108243728,-153.191082,0.00018,2]
[401288216,1768108243737,-242.540878,0.00018,2]
[401288217,1768108243747,-242.540878,0.00018,2]
[401288218,1768108243756,-151.0,0.00018,2]
[401288219,1768108243767,-151.0,0.00018,2]
[401288220,1768108243777,-151.0,0.00018,2]
[401288222,1768108243787,-175.3915,0.00018,2]
[401288224,1768108243797,-151.0,0.00018,2]
[401288225,1768108243807,-242.540878,0.00018,2]
[401288226,1768108243816,-151.0,0.00018,2]
[401288227,1768108243826,-242.540878,0.00018,2]
[401288228,1768108243835,-158.52102,0.00018,2]
[401288229,1768108243845,-232.98971,0.00018,2]
[401288230,1768108243854,-232.98971,0.00018,2]
[401288231,1768108243864,-232.98971,0.00018,2]
[401288232,1768108243874,-232.98971,0.00018,2]
[401288233,1768108243883,-151.0,0.00018,2]
[401288234,1768108243895,-151.0,0.00018,2]
[401288235,1768108243905,-167.237939,0.00018,2]
[401288236,1768108243915,-151.0,0.00018,2]
[401288237,1768108243925,-151.0,0.00018,2]
[401288238,1768108243934,-151.0,0.00018,2]
[401288239,1768108243944,-151.0,0.00018,2]
[401288240,1768108243954,-200.0,0.00018,2]
[401288241,1768108243963,-151.0,0.00018,2]
[401288242,1768108243972,-151.0,0.00018,2]
[401288243,1768108243982,-151.0,0.00018,2]
[401288244,1768108243991,-185.671433,0.00018,2]
[401288245,1768108244001,-158.022051,0.00018,2]
[401288246,1768108244011,-185.671433,0.00018,2]
[401288247,1768108244020,-185.671433,0.00018,2]
[401288248,1768108244029,-185.671433,0.00018,2]
[401288249,1768108244038,-715.08318,0.00018,2]
[401288250,1768108244047,-715.08318,0.00018,2]
[401288251,1768108244056,-715.08318,0.00018,2]
[401288252,1768108244065,-715.08318,0.00018,2]
[401288253,1768108244074,-151.0,0.00018,2]
[401288254,1768108244083,-151.0,0.00018,2]
[401288255,1768108244092,-418.543655,0.00018,2]
[401288256,1768108244101,-418.543655,0.00018,2]
[401288257,1768108244110,-445.8129,0.00018,2]
[401288258,1768108244120,-418.543655,0.00018,2]
[401288259,1768108244129,-364.920004,0.00018,2]
[401288260,1768108244138,-445.8129,0.00018,2]
[401288261,1768108244147,-418.543655,0.00018,2]
[401288262,1768108244157,-364.920004,0.00018,2]
[401288263,1768108244167,-445.8129,0.00018,2]
[401288264,1768108244176,-364.920004,0.00018,2]
[401288265,1768108244185,-445.8129,0.00018,2]
[401288266,1768108244194,-364.920004,0.00018,2]
[401288267,1768108244205,-151.0,0.00018,2]
[401288268,1768108244214,-151.0,0.00018,2]
[401288269,1768108244224,-151.0,0.00018,2]
[401288270,1768108244233,-151.0,0.00018,2]
[401288271,1768108244242,-151.0,0.00018,2]
[401288272,1768108244252,-851.699106,0.00018,2]
[401288273,1768108244261,-151.0,0.00018,2]
[401288274,1768108244270,-151.0,0.00018,2]
[401288275,1768108244279,-851.699106,0.00018,2]
[401288276,1768108244288,-151.0,0.00018,2]
[401288277,1768108244307,-851.699106,0.00018,2]
[401288278,1768108244318,-851.699106,0.00018,2]
[401288279,1768108244327,-202.835873,0.00018,2]
[401288280,1768108244338,-202.835873,0.00018,2]
[401288281,1768108244348,-252.136943,0.00018,2]
[401288282,1768108244357,-202.835873,0.00018,2]
[401288283,1768108244367,-252.136943,0.00018,2]
[401288284,1768108244377,-202.835873,0.00018,2]
[401288285,1768108244387,-252.136943,0.00018,2]
[401288286,1768108244396,-252.136943,0.00018,2]
[401288287,1768108244406,-151.0,0.00018,2]
[401288288,1768108244417,-514.027543,0.00018,2]
[401288289,1768108244426,-151.0,0.00018,2]
[401288290,1768108244436,-514.027543,0.00018,2]
[401288291,1768108244446,-514.027543,0.00018,2]
[401288292,1768108244455,-514.027543,0.00018,2]
[401288293,1768108244466,-151.0,0.00018,2]
[401288294,1768108244475,-173.361121,0.00018,2]
[401288295,1768108244485,-173.361121,0.00018,2]
[401288296,1768108244495,-151.0,0.00018,2]
[401288297,1768108244510,-173.361121,0.00018,2]
[401288298,1768108244528,-173.361121,0.00018,2]
[401288299,1768108244542,-151.0,0.00018,2]
[401288300,1768108244556,-151.0,0.00018,2]
[401288301,1768108244565,-151.0,0.00018,2]
[401288302,1768108244575,-1046.363777,0.00018,2]
[401288303,1768108244584,-1046.363777,0.00018,2]
[401288304,1768108244593,-1046.363777,0.00018,2]
[401288305,1768108244603,-230.143729,0.00018,2]
[401288306,1768108244612,-151.0,0.00018,2]
[401288307,1768108244622,-1046.363777,0.00018,2]
[401288308,1768108244632,-230.143729,0.00018,2]
[401288309,1768108244641,-151.0,0.00018,2]
[401288310,1768108244650,-151.0,0.00018,2]
[401288311,1768108244660,-230.143729,0.00018,2]
[401288312,1768108244669,-230.143729,0.00018,2]
[401288313,1768108244683,-273.843479,0.00018,2]
[401288314,1768108244693,-273.843479,0.00018,2]
[401288315,1768108244704,-273.843479,0.00018,2]
[401288316,1768108244715,-273.843479,0.00018,2]
[401288317,1768108244729,-151.0,0.00018,2]
[401288318,1768108244739,-151.0,0.00018,2]
[401288319,1768108244748,-500.0,0.00018004,2]
[401288320,1768108244758,-935.0,0.00018021,2]
[401288321,1768108244768,-918.33,0.00018037,2]
[401288322,1768108244778,-4219.64373456,0.00018078,2]
[401288323,1768108244788,-150.0,0.00018085,2]
[401288324,1768108244798,-1776.24083288,0.000181,2]
[401288325,1768108244809,-166.86277605,0.00018121,2]
[401288326,1768108244819,-1002.23429163,0.00018121,2]
[401288327,1768108244830,-1002.39199871,0.00018121,2]
[401288328,1768108244840,-500.93632918,0.00018121,2]
[401288329,1768108244850,-1000.0,0.00018121,2]
[401288330,1768108244859,-937.643867,0.00018121,2]
[401288331,1768108244869,-200.0,0.00018128,2]
[401288332,1768108244879,-250.0,0.00018144,2]
[401288333,1768108244889,-166.66,0.00018152,2]
[401288334,1768108244898,-705.56277415,0.00018168,2]
[401288335,1768108244909,-1500.0,0.00018168,2]
[401288336,1768108244919,-500.0,0.00018171,2]
[401288337,1768108244929,-957.92,0.00018306,2]
[401288338,1768108244939,-918.33,0.00018311,2]